bitfinex/quotes_BTCUSD_20240715
["timestamp","ask_amount","ask_price","bid_price","bid_amount"]
[1721083836468,0.02778373,64585.0,64581.0,0.300924]
[1721083836644,0.12778373,64585.0,64581.0,0.302924]
[1721083836857,0.02878373,64585.0,64581.0,0.302924]
[1721083837416,0.00578373,64585.0,64581.0,0.302924]
[1721083839088,0.023,64584.0,64581.0,0.302924]
[1721083839492,0.00439432,64583.0,64581.0,0.302924]
[1721083839723,0.023,64582.0,64581.0,0.302924]
[1721083839961,0.023,64582.0,64581.0,0.300924]
[1721083840164,0.0273975,64582.0,64581.0,0.300924]
[1721083840335,0.0773975,64582.0,64581.0,0.303924]
[1721083840489,0.2203975,64582.0,64581.0,0.303924]
[1721083840703,0.3203975,64582.0,64581.0,0.303924]
[1721083840896,0.3203975,64582.0,64581.0,0.300924]
[1721083841120,0.3703975,64582.0,64581.0,0.300924]
[1721083841327,0.3703975,64582.0,64581.0,0.306924]
[1721083841328,0.7859215,64582.0,64581.0,0.306924]
[1721083841531,0.51156062,64582.0,64581.0,0.306924]
[1721083841937,0.56156062,64582.0,64581.0,0.306924]
[1721083842306,0.87124362,64582.0,64581.0,0.306924]
[1721083842557,1.18092662,64582.0,64581.0,0.306924]
[1721083842972,0.92124362,64582.0,64581.0,0.306924]
[1721083843219,1.1456045,64582.0,64581.0,0.306924]
[1721083843428,1.18147812,64582.0,64581.0,0.306924]
[1721083843577,1.4542875,64582.0,64581.0,0.300924]
[1721083843780,1.49316622,64582.0,64581.0,0.29965277]
[1721083843959,1.49916622,64582.0,64581.0,0.29965277]
[1721083844154,1.76295702,64582.0,64581.0,0.29965277]
[1721083844370,1.54916622,64582.0,64581.0,0.29965277]
[1721083844823,1.49616622,64582.0,64581.0,0.29965277]
[1721083845145,1.54616622,64582.0,64581.0,0.29965277]
[1721083845276,1.49016622,64582.0,64581.0,0.29965277]
[1721083845476,1.59962614,64582.0,64581.0,0.29965277]
[1721083845717,1.56262614,64582.0,64581.0,0.29965277]
[1721083845923,0.05,64560.0,64559.0,0.009185]
[1721083846127,0.05,64560.0,64546.0,0.009185]
[1721083846128,0.05,64555.0,64554.0,0.00225776]
[1721083846529,0.02790748,64555.0,64554.0,0.00225776]
[1721083847269,0.02890748,64555.0,64554.0,0.00225776]
[1721083847463,0.02990748,64555.0,64554.0,0.00425776]
[1721083847602,0.09590748,64555.0,64554.0,0.00425776]
[1721083847830,0.17590748,64555.0,64554.0,0.00225776]
[1721083848074,0.27590748,64555.0,64554.0,0.00425776]
[1721083848219,0.12990748,64555.0,64554.0,0.00425776]
[1721083848830,0.17990748,64555.0,64554.0,0.00425776]
[1721083849041,0.07890748,64555.0,64554.0,0.00425776]
[1721083849288,0.33687701,64555.0,64554.0,0.00425776]
[1721083849461,0.64769001,64555.0,64554.0,0.00425776]
[1721083849667,1.00443948,64555.0,64554.0,0.00425776]
[1721083849864,0.69362648,64555.0,64554.0,0.00225776]
[1721083850064,0.64362648,64555.0,64554.0,0.00225776]
[1721083850268,0.27890748,64555.0,64554.0,0.00225776]
[1721083850535,0.28890748,64555.0,64554.0,0.00225776]
[1721083850660,1.40099412,64555.0,64554.0,0.00225776]
[1721083850866,1.38894878,64555.0,64554.0,0.00225776]
[1721083851071,1.06239414,64555.0,64554.0,0.00225776]
[1721083851268,0.33786214,64555.0,64554.0,0.00225776]
[1721083851475,0.44481348,64555.0,64554.0,0.00225776]
[1721083851866,0.70462648,64555.0,64554.0,0.00225776]
[1721083852069,1.16878905,64555.0,64554.0,0.00225776]
[1721083852291,1.55577684,64555.0,64554.0,0.00225776]
[1721083852506,0.05,64542.0,64527.0,0.009185]
[1721083852678,0.30983,64552.0,64527.0,0.009185]
[1721083852680,0.05,64528.0,64527.0,0.009185]
[1721083853118,0.02779879,64528.0,64527.0,0.009185]
[1721083853312,0.07779879,64528.0,64527.0,0.009185]
[1721083853714,0.0739981,64528.0,64527.0,0.009185]
[1721083853941,0.0239981,64528.0,64527.0,0.075385]
[1721083854183,0.0239981,64528.0,64527.0,0.009185]
[1721083854398,0.0239981,64528.0,64527.0,0.010185]
[1721083854399,0.0259981,64528.0,64527.0,0.010185]
[1721083855104,0.0259981,64528.0,64527.0,0.009185]
[1721083855315,0.0249981,64528.0,64527.0,0.009185]
[1721083855527,0.0249981,64528.0,64527.0,0.153685]
[1721083855528,0.00479879,64528.0,64527.0,0.153685]
[1721083855852,0.012,64528.0,64527.0,0.153685]
[1721083856055,0.1,64543.0,64527.0,0.153685]
[1721083856262,0.05,64541.0,64527.0,0.153685]
[1721083856469,0.009,64528.0,64527.0,0.153685]
[1721083856878,0.001,64528.0,64527.0,0.153685]
[1721083857217,0.023,64540.0,64527.0,0.153685]
[1721083857427,0.10017479,64540.0,64527.0,0.153685]
[1721083857590,0.05,64536.0,64527.0,0.153685]
[1721083857809,0.10479821,64539.0,64527.0,0.153685]
[1721083857810,0.05,64534.0,64527.0,0.153685]
[1721083857961,0.001,64528.0,64527.0,0.153685]
[1721083858156,0.051,64528.0,64527.0,0.009185]
[1721083858363,0.02879939,64528.0,64527.0,0.009185]
[1721083858563,0.00579939,64528.0,64527.0,0.009185]
[1721083859007,0.02979939,64528.0,64527.0,0.009185]
[1721083859678,0.02979939,64528.0,64527.0,0.151885]
[1721083859679,0.00679939,64528.0,64527.0,0.151885]
[1721083859880,0.00679939,64528.0,64527.0,0.926752]
[1721083859881,1e-08,64528.0,64527.0,0.926752]
[1721083860286,1e-08,64528.0,64527.0,0.151885]
[1721083862517,0.1,64538.0,64527.0,0.151885]
[1721083862728,0.001,64528.0,64527.0,0.159885]
[1721083862904,0.001,64528.0,64527.0,0.151885]
[1721083863320,0.001,64528.0,64527.0,0.160885]
[1721083863321,0.002,64528.0,64527.0,0.160885]
[1721083863726,0.073,64537.0,64527.0,0.157885]
[1721083864023,0.001,64528.0,64527.0,0.169885]
[1721083864770,0.001,64528.0,64527.0,0.169785]
[1721083864976,0.001,64528.0,64527.0,0.081685]
[1721083865176,0.001,64528.0,64527.0,0.021085]
[1721083865378,0.001,64528.0,64527.0,0.023085]
[1721083865598,0.001,64528.0,64527.0,0.024085]
[1721083866005,0.001,64528.0,64527.0,0.023085]
[1721083866708,0.00840771,64528.0,64527.0,0.023085]
[1721083866929,0.02539052,64528.0,64527.0,0.032085]
[1721083867308,0.20736152,64528.0,64527.0,0.032085]
[1721083867512,0.33036152,64528.0,64527.0,0.032085]
[1721083867714,0.12539052,64528.0,64527.0,0.032085]
[1721083868621,0.02539052,64528.0,64527.0,0.032085]
[1721083869160,0.23036152,64528.0,64527.0,0.032085]
[1721083869406,0.12539052,64528.0,64527.0,0.032085]
[1721083869920,0.95024552,64528.0,64527.0,0.032085]
[1721083870477,0.17539052,64528.0,64527.0,0.032085]
[1721083870882,0.32936152,64528.0,64527.0,0.018085]
[1721083871111,0.33536152,64528.0,64527.0,0.019085]
[1721083871528,0.33536152,64528.0,64527.0,0.010085]
[1721083871529,0.17939052,64528.0,64527.0,0.010085]
[1721083871740,0.32836152,64528.0,64527.0,0.009085]
[1721083871942,0.33836152,64528.0,64527.0,0.010085]
[1721083872154,0.32836152,64528.0,64527.0,0.009085]
[1721083872357,0.63830352,64528.0,64527.0,0.009085]
[1721083872971,1.80778752,64528.0,64527.0,0.009085]
[1721083873160,2.25956433,64528.0,64527.0,0.009085]
[1721083873362,2.21175107,64528.0,64527.0,0.009085]
[1721083873559,2.21175107,64528.0,64527.0,0.012085]
[1721083873560,2.19613568,64528.0,64527.0,0.012085]
[1721083873720,2.51012776,64528.0,64527.0,0.012085]
[1721083873942,2.51012776,64528.0,64527.0,0.009085]
[1721083873943,2.55006424,64528.0,64527.0,0.009085]
[1721083874141,1.329782,64517.0,64516.0,0.009185]
[1721083874344,1.807582,64517.0,64516.0,0.009185]
[1721083874604,1.84156273,64517.0,64516.0,0.009185]
[1721083874760,1.79374418,64517.0,64516.0,0.009185]
[1721083875162,0.05,64496.0,64495.0,0.0735691]
[1721083875370,0.023,64496.0,64495.0,0.0735691]
[1721083875574,0.02338956,64496.0,64495.0,0.0735691]
[1721083875774,0.00038956,64496.0,64495.0,0.1522691]
[1721083875977,0.00038956,64496.0,64495.0,0.22944389]
[1721083876181,0.1,64500.0,64495.0,0.22944389]
[1721083876388,0.00847752,64496.0,64495.0,0.22944389]
[1721083876584,0.05,64512.0,64496.0,0.00018652]
[1721083876803,0.05,64512.0,64495.0,0.22944389]
[1721083876804,0.46304871,64510.0,64498.0,0.00018652]
[1721083876980,0.46304871,64510.0,64495.0,0.22944389]
[1721083876981,0.05,64504.0,64495.0,0.1522691]
[1721083877183,0.70784871,64509.0,64495.0,0.1522691]
[1721083877185,0.1,64509.0,64495.0,0.1522691]
[1721083877721,0.001,64496.0,64495.0,0.1522691]
[1721083878220,0.05,64505.0,64495.0,0.1522691]
[1721083878398,0.023,64504.0,64495.0,0.1522691]
[1721083878818,0.101,64509.0,64495.0,0.1522691]
[1721083878819,0.001,64496.0,64495.0,0.1522691]
[1721083879016,0.023,64502.0,64495.0,0.1522691]
[1721083879259,0.001,64496.0,64495.0,0.1522691]
[1721083879622,0.023,64502.0,64495.0,0.1522691]
[1721083879798,0.023,64508.0,64495.0,0.1522691]
[1721083879999,0.001,64496.0,64495.0,0.1522691]
[1721083880753,0.002,64496.0,64495.0,0.1522691]
[1721083881108,0.001,64496.0,64495.0,0.1522691]
[1721083882263,0.001,64502.0,64495.0,0.1522691]
[1721083882902,0.023,64508.0,64495.0,0.1522691]
[1721083883197,0.002,64496.0,64495.0,0.1522691]
[1721083883628,0.001,64496.0,64495.0,0.1522691]
[1721083883832,0.001,64502.0,64495.0,0.1522691]
[1721083884605,0.00831677,64501.0,64495.0,0.1522691]
[1721083885306,0.023,64500.0,64495.0,0.1522691]
[1721083885728,0.001,64496.0,64495.0,0.1522691]
[1721083885939,0.002,64496.0,64495.0,0.1522691]
[1721083886108,0.001,64496.0,64495.0,0.1522691]
[1721083886315,0.00931993,64496.0,64495.0,0.1522691]
[1721083886531,0.023,64496.0,64495.0,0.1522691]
[1721083887266,0.024,64496.0,64495.0,0.0735691]
[1721083887470,0.001,64496.0,64495.0,0.0735691]
[1721083887661,0.03081463,64496.0,64495.0,0.0735691]
[1721083887858,0.024,64496.0,64495.0,0.0735691]
[1721083888022,0.025,64496.0,64495.0,0.0735691]
[1721083888452,0.025,64496.0,64495.0,0.0130691]
[1721083888674,0.0332519,64496.0,64495.0,0.0130691]
[1721083891791,0.0337519,64496.0,64495.0,0.0130691]
[1721083891967,0.0837519,64496.0,64495.0,0.0130691]
[1721083892215,0.2387999,64496.0,64495.0,0.0130691]
[1721083892419,0.6488959,64496.0,64495.0,0.0130691]
[1721083892593,0.3387999,64496.0,64495.0,0.0130691]
[1721083892953,0.1327519,64496.0,64495.0,0.0130691]
[1721083893108,0.43761338,64496.0,64495.0,0.0130691]
[1721083893435,0.1327519,64496.0,64495.0,0.0130691]
[1721083893633,0.1097519,64496.0,64495.0,0.0130691]
[1721083893793,0.0097519,64496.0,64495.0,0.0770691]
[1721083894011,0.0087519,64496.0,64495.0,0.0770691]
[1721083894207,0.0097519,64496.0,64495.0,0.0770691]
[1721083894600,0.00293727,64496.0,64495.0,0.1590691]
[1721083894799,0.0015,64496.0,64495.0,0.1590691]
[1721083896103,0.01173491,64496.0,64495.0,0.1590691]
[1721083896339,0.07793959,64496.0,64495.0,0.0130691]
[1721083896557,0.0265,64496.0,64495.0,0.0130691]
[1721083896708,0.03273491,64496.0,64495.0,0.0130691]
[1721083897147,0.03373491,64496.0,64495.0,0.0130691]
[1721083897350,0.03273491,64496.0,64495.0,0.0130691]
[1721083897549,0.03173491,64496.0,64495.0,0.0130691]
[1721083897756,0.03473491,64496.0,64495.0,0.0130691]
[1721083898256,0.03173491,64496.0,64495.0,0.0130691]
[1721083898595,0.17553491,64496.0,64495.0,0.0130691]
[1721083898792,1.14813983,64496.0,64495.0,0.0130691]
[1721083898991,1.21034765,64496.0,64495.0,0.0130691]
[1721083899141,1.25011456,64496.0,64495.0,0.0130691]
[1721083899323,1.25111456,64496.0,64495.0,0.0130691]
[1721083899661,1.25211456,64496.0,64495.0,0.0130691]
[1721083899861,1.25111456,64496.0,64495.0,0.0130691]
[1721083900061,1.57121056,64496.0,64495.0,0.0139931]
[1721083900203,0.87512548,64490.0,64489.0,0.009196]
[1721083900408,1.52892123,64490.0,64489.0,0.009196]
[1721083900610,1.63738391,64490.0,64489.0,0.009196]
[1721083900810,1.66038391,64490.0,64489.0,0.009196]
[1721083901011,1.35025891,64490.0,64489.0,0.009196]
[1721083901829,0.99032043,64490.0,64489.0,0.009196]
[1721083902050,1.09013391,64490.0,64489.0,0.009196]
[1721083902254,1.08974482,64490.0,64489.0,0.009196]
[1721083902454,1.03993134,64490.0,64489.0,0.009196]
[1721083902668,0.2278405,64490.0,64489.0,0.009196]
[1721083903015,0.43271598,64490.0,64489.0,0.009196]
[1721083903234,0.27065398,64490.0,64489.0,0.009196]
[1721083903434,0.27365398,64490.0,64489.0,0.009196]
[1721083903639,0.2238405,64490.0,64489.0,0.009196]
[1721083903867,0.2348405,64490.0,64489.0,0.009196]
[1721083904010,0.3899025,64490.0,64489.0,0.009196]
[1721083904434,0.54467622,64490.0,64489.0,0.009196]
[1721083904635,0.7495517,64490.0,64489.0,0.009196]
[1721083904838,0.80935509,64490.0,64489.0,0.009196]
[1721083905039,0.99245509,64490.0,64489.0,0.009196]
[1721083905240,0.94264161,64490.0,64489.0,0.009196]
[1721083905448,0.96007727,64490.0,64489.0,0.009196]
[1721083905693,0.99953806,64490.0,64489.0,0.009196]
[1721083905857,0.99984133,64490.0,64489.0,0.009196]
[1721083906412,1.04984133,64490.0,64489.0,0.009196]
[1721083907696,1.00002785,64490.0,64489.0,0.009196]
[1721083907860,1.04984133,64490.0,64489.0,0.009196]
[1721083908677,0.26775447,64490.0,64489.0,0.009196]
[1721083909227,0.9334496,64490.0,64489.0,0.009196]
[1721083909420,0.67313808,64490.0,64489.0,0.009196]
[1721083909617,0.77996392,64490.0,64489.0,0.009196]
[1721083909825,0.73296392,64490.0,64489.0,0.009196]
[1721083910204,0.92725044,64490.0,64489.0,0.009196]
[1721083910403,0.94725044,64490.0,64489.0,0.009196]
[1721083910698,1.31318892,64490.0,64489.0,0.009196]
[1721083910881,1.30618892,64490.0,64489.0,0.009196]
[1721083911281,1.30618892,64490.0,64489.0,0.010196]
[1721083911687,1.30618892,64490.0,64489.0,0.009196]
[1721083911902,1.36622472,64490.0,64489.0,0.009196]
[1721083912272,1.41530849,64490.0,64489.0,0.009196]
[1721083912481,2.17355849,64490.0,64489.0,0.009196]
[1721083912688,1.80616434,64490.0,64489.0,0.009196]
[1721083912893,1.81616434,64490.0,64489.0,0.009196]
[1721083913072,1.82216434,64490.0,64489.0,0.009196]
[1721083913360,1.82216434,64490.0,64469.0,0.0655]
[1721083913361,0.09981348,64479.0,64469.0,0.0655]
[1721083913566,0.05,64470.0,64469.0,0.0655]
[1721083913715,0.04008377,64470.0,64469.0,0.0655]
[1721083913918,0.16998025,64470.0,64469.0,0.0655]
[1721083914121,0.16998025,64470.0,64460.0,0.07736131]
[1721083914122,0.147,64469.0,64460.0,0.07736131]
[1721083914329,0.147,64469.0,64447.0,0.1466]
[1721083914330,0.155127,64463.0,64453.0,0.0001]
[1721083914488,0.67743625,64463.0,64453.0,0.0001]
[1721083914688,0.68427152,64463.0,64453.0,0.0001]
[1721083914892,0.27877908,64463.0,64462.0,0.074696]
[1721083915095,0.21888952,64463.0,64462.0,0.074696]
[1721083915349,0.33496227,64463.0,64462.0,0.009196]
[1721083915499,0.63497375,64463.0,64462.0,0.009196]
[1721083915725,0.63497375,64463.0,64453.0,0.0001]
[1721083915726,0.25485971,64454.0,64453.0,0.0001]
[1721083915921,0.79930348,64454.0,64453.0,0.0001]
[1721083916125,0.89930348,64454.0,64453.0,0.0001]
[1721083916525,1.23260148,64454.0,64453.0,0.0001]
[1721083917012,1.23460148,64454.0,64453.0,0.0001]
[1721083917408,1.192845,64454.0,64453.0,0.0001]
[1721083917556,0.882547,64454.0,64453.0,0.0001]
[1721083917957,0.4221,64454.0,64453.0,0.0001]
[1721083918160,0.173,64454.0,64453.0,0.0001]
[1721083918560,0.003,64454.0,64453.0,0.0001]
[1721083920127,0.026,64454.0,64453.0,0.0001]
[1721083920278,0.126,64454.0,64453.0,0.0001]
[1721083920648,0.003,64454.0,64453.0,0.14698929]
[1721083920865,0.003,64454.0,64453.0,0.14717581]
[1721083921564,0.05,64468.0,64458.0,0.00028929]
[1721083921708,0.36002048,64473.0,64455.0,0.00018652]
[1721083921709,0.05,64472.0,64455.0,0.00018652]
[1721083921912,0.29391348,64474.0,64456.0,0.00028929]
[1721083922139,0.29391348,64474.0,64453.0,0.1467]
[1721083922140,0.2441,64467.0,64453.0,0.1467]
[1721083922343,0.05287701,64466.0,64453.0,0.1467]
[1721083922694,0.155126,64464.0,64453.0,0.1467]
[1721083922899,0.15819053,64463.0,64453.0,0.1467]
[1721083923098,0.18119253,64463.0,64453.0,0.1467]
[1721083923336,0.02606353,64463.0,64453.0,0.1467]
[1721083923538,0.023,64463.0,64453.0,0.1467]
[1721083923736,0.178126,64464.0,64453.0,0.1467]
[1721083923935,0.10406353,64463.0,64453.0,0.1468]
[1721083924139,0.023,64462.0,64453.0,0.1468]
[1721083924396,0.001,64454.0,64453.0,0.1468]
[1721083924566,0.255144,64456.0,64453.0,0.1468]
[1721083924816,0.465447,64454.0,64453.0,0.0002]
[1721083925031,0.465447,64454.0,64436.0,0.00028929]
[1721083925032,0.04971072,64442.0,64430.0,0.02245162]
[1721083925233,0.0142414,64435.0,64430.0,0.0222651]
[1721083925577,0.023,64434.0,64430.0,0.0222651]
[1721083925785,0.01544561,64433.0,64430.0,0.0222651]
[1721083925984,0.023,64432.0,64430.0,0.0222651]
[1721083926226,0.01546605,64431.0,64430.0,0.0222651]
[1721083926626,0.01546605,64431.0,64430.0,0.02255439]
[1721083926838,0.01546605,64431.0,64430.0,0.0222651]
[1721083927039,0.01546605,64431.0,64430.0,0.02255439]
[1721083927538,0.01546605,64431.0,64430.0,0.16275439]
[1721083928252,0.001,64432.0,64431.0,0.00028929]
[1721083929358,0.04971072,64445.0,64431.0,0.12057857]
[1721083929581,0.01462304,64443.0,64435.0,0.00028928]
[1721083929779,0.01462304,64443.0,64430.0,0.16265162]
[1721083929780,0.001,64431.0,64430.0,0.1624651]
[1721083929979,0.01652626,64431.0,64430.0,0.1624651]
[1721083930156,0.01552626,64431.0,64430.0,0.1624651]
[1721083930362,0.01552626,64431.0,64430.0,0.0222651]
[1721083930538,0.01542626,64431.0,64430.0,0.0222651]
[1721083930949,0.50403926,64431.0,64430.0,0.0222651]
[1721083931174,0.19363026,64431.0,64430.0,0.0222651]
[1721083931335,0.60403926,64431.0,64430.0,0.0222651]
[1721083931778,0.60393926,64431.0,64430.0,0.0222651]
[1721083932004,0.60393926,64431.0,64430.0,0.0872651]
[1721083932005,0.13832626,64431.0,64430.0,0.0872651]
[1721083932204,0.14532626,64431.0,64430.0,0.0872651]
[1721083932426,0.11532626,64431.0,64430.0,0.0872651]
[1721083932628,0.01532626,64431.0,64430.0,0.08755439]
[1721083933199,0.04971071,64450.0,64430.0,0.08755439]
[1721083933200,0.46304871,64447.0,64437.0,0.0658]
[1721083933379,0.04971072,64460.0,64447.0,0.00028929]
[1721083933579,0.19711348,64469.0,64449.0,0.00028929]
[1721083933580,0.04971072,64462.0,64449.0,0.00028929]
[1721083934064,0.04971072,64462.0,64445.0,0.0658]
[1721083934065,0.04981348,64469.0,64453.0,0.22616408]
[1721083934185,0.05021072,64470.0,64453.0,0.22616408]
[1721083934186,0.0005,64470.0,64453.0,0.6918046]
[1721083934387,0.0005,64470.0,64453.0,0.14917581]
[1721083934619,0.0005,64470.0,64453.0,0.14817581]
[1721083935673,0.00184,64454.0,64453.0,0.14817581]
[1721083936052,0.00084,64454.0,64453.0,0.14827581]
[1721083936257,0.0005,64470.0,64457.0,0.0791]
[1721083936455,0.0005,64470.0,64462.0,0.00018652]
[1721083936456,0.46304871,64469.0,64462.0,0.00018652]
[1721083936822,0.0005,64470.0,64464.0,0.00018652]
[1721083937296,0.0005,64470.0,64463.0,0.07928652]
[1721083937439,0.0005,64470.0,64464.0,0.00018652]
[1721083937643,0.0005,64470.0,64465.0,0.0652]
[1721083939132,0.0025,64470.0,64465.0,0.0652]
[1721083939292,0.0015,64470.0,64465.0,0.0652]
[1721083939539,0.0015,64470.0,64465.0,0.06548928]
[1721083939845,0.0015,64470.0,64468.0,0.00018652]
[1721083940048,0.0025,64470.0,64468.0,0.00018652]
[1721083940681,0.0015,64470.0,64468.0,0.00018652]
[1721083941176,0.0015,64470.0,64469.0,0.53198731]
[1721083941177,0.0025,64470.0,64469.0,0.53198731]
[1721083941380,0.0025,64470.0,64469.0,1.11761559]
[1721083941712,0.46304871,64489.0,64480.0,0.0648]
[1721083942167,0.465646,64496.0,64480.0,0.0648]
[1721083942168,0.0005,64496.0,64480.0,0.0648]
[1721083942336,0.0005,64496.0,64481.0,0.0796]
[1721083942337,0.04971072,64492.0,64481.0,0.0796]
[1721083942536,0.0005,64496.0,64481.0,0.0796]
[1721083942537,0.255054,64494.0,64481.0,0.0796]
[1721083942773,0.04971072,64492.0,64481.0,0.0796]
[1721083943209,0.1,64494.0,64481.0,0.0796]
[1721083943210,0.023,64491.0,64481.0,0.0796]
[1721083943484,0.023,64493.0,64481.0,0.0796]
[1721083943690,0.1,64494.0,64482.0,0.00028928]
[1721083944061,0.1,64494.0,64481.0,0.0796]
[1721083944261,0.001,64492.0,64482.0,0.00028928]
[1721083944418,0.001,64492.0,64481.0,0.0856]
[1721083944995,0.001,64492.0,64482.0,0.00028928]
[1721083945197,0.001,64492.0,64481.0,0.0856]
[1721083945343,0.024,64492.0,64481.0,0.0856]
[1721083945543,0.023,64492.0,64483.0,0.00028928]
[1721083945960,0.0235,64496.0,64483.0,0.00028928]
[1721083946149,0.0005,64496.0,64483.0,0.00028928]
[1721083946558,0.001,64492.0,64483.0,0.00028928]
[1721083946916,0.001,64492.0,64483.0,0.004]
[1721083947132,0.001,64492.0,64482.0,0.00028928]
[1721083947334,0.001,64492.0,64483.0,0.00028928]
[1721083947644,0.001,64492.0,64481.0,0.0856]
[1721083947842,0.0015,64496.0,64481.0,0.0796]
[1721083948177,0.00306353,64495.0,64481.0,0.0796]
[1721083948619,0.023,64494.0,64481.0,0.0796]
[1721083949011,0.00306353,64493.0,64483.0,0.001]
[1721083949253,0.023,64492.0,64483.0,0.001]
[1721083949769,0.023,64492.0,64483.0,0.005]
[1721083949966,0.023,64494.0,64483.0,0.005]
[1721083950110,0.023,64494.0,64483.0,0.004]
[1721083951221,0.0005,64496.0,64481.0,0.15706407]
[1721083951519,0.0005,64496.0,64481.0,0.07988928]
[1721083951873,0.00306353,64495.0,64481.0,0.07988928]
[1721083952102,0.023,64494.0,64483.0,0.004]
[1721083952498,0.0005,64496.0,64483.0,0.004]
[1721083952499,0.00306353,64495.0,64483.0,0.004]
[1721083952662,0.00306353,64495.0,64481.0,0.07988928]
[1721083952663,0.04971072,64491.0,64481.0,0.0796]
[1721083952860,0.00306353,64495.0,64481.0,0.15806407]
[1721083953062,0.00306353,64493.0,64481.0,0.08088928]
[1721083953259,0.00306353,64493.0,64481.0,0.0806]
[1721083953501,0.023,64494.0,64481.0,0.07988928]
[1721083953728,0.023,64494.0,64483.0,0.004]
[1721083953929,0.07717479,64491.0,64483.0,0.004]
[1721083954128,0.04971072,64484.0,64483.0,0.004]
[1721083954506,0.02606353,64484.0,64483.0,0.004]
[1721083955333,0.023,64484.0,64481.0,0.009]
[1721083955530,0.02606353,64483.0,64481.0,0.021]
[1721083955894,0.02606353,64483.0,64481.0,0.009]
[1721083956282,0.00306353,64485.0,64481.0,0.009]
[1721083956396,0.001,64484.0,64483.0,0.008]
[1721083956804,0.001,64484.0,64483.0,0.006]
[1721083957300,0.00306353,64493.0,64481.0,0.009]
[1721083957502,0.001,64483.0,64481.0,0.017]
[1721083957818,0.00306353,64491.0,64481.0,0.009]
[1721083958045,0.07271072,64490.0,64481.0,0.009]
[1721083958405,0.001,64484.0,64476.0,0.00018652]
[1721083958520,0.00306353,64483.0,64476.0,0.00018652]
[1721083958765,0.00306353,64483.0,64474.0,0.1416]
[1721083958962,0.00306353,64483.0,64476.0,0.00018652]
[1721083959371,0.00306353,64483.0,64474.0,0.1416]
[1721083959372,0.00306353,64483.0,64481.0,0.001]
[1721083959769,0.00306353,64483.0,64474.0,0.1416]
[1721083960014,0.00306353,64483.0,64464.0,0.46748673]
[1721083960015,0.15480472,64477.0,64469.0,0.0663]
[1721083960187,0.05277425,64477.0,64476.0,0.009]
[1721083960366,0.20480472,64477.0,64476.0,0.009]
[1721083960569,1.0751942,64477.0,64476.0,0.009]
[1721083960773,1.37724609,64477.0,64476.0,0.009]
[1721083961058,1.06705809,64477.0,64476.0,0.009]
[1721083961186,1.02548348,64477.0,64476.0,0.009]
[1721083961390,0.22247465,64477.0,64476.0,0.009]
[1721083961792,0.17281348,64477.0,64464.0,0.00018673]
[1721083961994,0.155098,64475.0,64464.0,0.00018673]
[1721083962202,0.123,64474.0,64464.0,0.00018673]
[1721083962404,0.04551137,64473.0,64464.0,0.00018673]
[1721083962625,0.178106,64472.0,64464.0,0.00018673]
[1721083962997,0.00306353,64471.0,64464.0,0.00018673]
[1721083963202,0.023,64470.0,64464.0,0.00018673]
[1721083963420,0.00306353,64469.0,64464.0,0.00018673]
[1721083963642,0.04240712,64468.0,64464.0,0.00918673]
[1721083963848,0.02606353,64467.0,64464.0,0.00918673]
[1721083964054,0.02606353,64467.0,64464.0,0.01018673]
[1721083964258,0.02606353,64467.0,64464.0,0.00918673]
[1721083964640,0.02606353,64467.0,64464.0,0.01411073]
[1721083964845,0.04966117,64465.0,64464.0,0.01411073]
[1721083965048,0.04966117,64465.0,64464.0,0.00111073]
[1721083965049,0.16449366,64465.0,64464.0,0.00111073]
[1721083965248,0.16449366,64465.0,64464.0,0.00711073]
[1721083965249,1.32496841,64465.0,64464.0,0.00711073]
[1721083965455,1.45035066,64465.0,64464.0,0.00711073]
[1721083965652,1.48725962,64465.0,64464.0,0.00711073]
[1721083965890,1.48725962,64465.0,64464.0,0.00111073]
[1721083966095,1.48825962,64465.0,64464.0,0.01311073]
[1721083966328,1.41156054,64465.0,64464.0,0.01311073]
[1721083966498,1.41056054,64465.0,64464.0,0.00111073]
[1721083966712,1.41056054,64465.0,64464.0,0.00911073]
[1721083967031,1.47122171,64465.0,64464.0,0.01011073]
[1721083967240,1.47122171,64465.0,64464.0,0.00211073]
[1721083967464,1.58592171,64465.0,64464.0,0.00211073]
[1721083967667,1.90895746,64465.0,64464.0,0.00311073]
[1721083967843,1.80929858,64465.0,64464.0,0.00311073]
[1721083967983,1.80929858,64465.0,64464.0,0.00111073]
[1721083967984,1.78429858,64465.0,64464.0,0.00111073]
[1721083968388,1.79329858,64465.0,64464.0,0.001924]
[1721083968865,1.78429858,64465.0,64464.0,0.000924]
[1721083969041,1.79629858,64465.0,64464.0,0.001924]
[1721083969245,1.80729858,64465.0,64464.0,0.002924]
[1721083969842,1.79629858,64465.0,64464.0,0.001924]
[1721083970041,1.79629858,64465.0,64464.0,0.002924]
[1721083970042,1.80729858,64465.0,64464.0,0.002924]
[1721083970458,1.88200381,64465.0,64464.0,0.002924]
[1721083970825,1.88283909,64465.0,64464.0,0.002924]
[1721083971023,2.33543366,64465.0,64464.0,0.001924]
[1721083971365,2.41723366,64465.0,64464.0,0.000924]
[1721083971563,2.41723366,64465.0,64453.0,0.0001]
[1721083971564,1.74051565,64454.0,64453.0,0.0001]
[1721083971867,2.16975451,64454.0,64453.0,0.0001]
[1721083972064,2.26941568,64454.0,64453.0,0.0001]
[1721083973166,2.28341568,64454.0,64453.0,0.0001]
[1721083974044,2.2426867,64454.0,64453.0,0.0001]
[1721083974236,2.28338965,64454.0,64453.0,0.0001]
[1721083975689,2.74803722,64454.0,64453.0,0.0001]
[1721083975839,2.28338965,64454.0,64453.0,0.0001]
[1721083976044,2.29738965,64454.0,64453.0,0.0001]
[1721083976245,1.9322186,64454.0,64453.0,0.0001]
[1721083976445,2.1768186,64454.0,64453.0,0.0001]
[1721083976846,2.07715743,64454.0,64453.0,0.0001]
[1721083977052,2.1268186,64454.0,64453.0,0.0001]
[1721083977260,0.89465326,64454.0,64453.0,0.0001]
[1721083977499,0.90321965,64454.0,64453.0,0.0001]
[1721083977663,0.493447,64454.0,64453.0,0.0001]
[1721083977864,0.54310817,64454.0,64453.0,0.0001]